bitfinex/quotes_BTCUSD_20260215
["timestamp","ask_amount","ask_price","bid_price","bid_amount"]
[1771141289015,0.28217753,70878.0,70868.0,1e-08]
[1771141289232,0.0705526,70870.0,70868.0,1e-08]
[1771141289762,0.09459215,70871.0,70868.0,1e-08]
[1771141289961,0.0705527,70869.0,70868.0,1e-08]
[1771141290594,0.07055569,70866.0,70865.0,1e-08]
[1771141291335,0.07055258,70870.0,70865.0,1e-08]
[1771141291556,0.0240395,70871.0,70865.0,1e-08]
[1771141291755,0.09459519,70866.0,70860.0,0.00034]
[1771141292119,0.07055684,70865.0,70860.0,0.00034]
[1771141292705,0.07055835,70864.0,70860.0,0.00034]
[1771141293039,0.07055879,70863.0,70860.0,0.00034]
[1771141293247,0.28217898,70879.0,70860.0,0.00034]
[1771141293445,0.07055768,70865.0,70860.0,0.00034]
[1771141294063,0.07055583,70866.0,70860.0,0.00034]
[1771141294264,0.07055966,70863.0,70860.0,0.00034]
[1771141294602,0.28220312,70871.0,70860.0,0.00034]
[1771141294835,0.07056376,70858.0,70853.0,0.00022]
[1771141295171,0.07056291,70859.0,70853.0,0.00022]
[1771141296027,0.07056418,70858.0,70853.0,0.00022]
[1771141296230,0.07056654,70856.0,70853.0,0.00022]
[1771141296408,0.30627951,70862.0,70853.0,0.00022]
[1771141296409,0.07056312,70859.0,70853.0,0.00022]
[1771141297606,0.07056145,70861.0,70853.0,0.00022]
[1771141297607,0.07056194,70860.0,70853.0,0.00022]
[1771141297985,0.07056145,70861.0,70853.0,0.00022]
[1771141298748,0.07056198,70860.0,70853.0,0.00022]
[1771141300330,0.07056274,70859.0,70853.0,0.00022]
[1771141304813,0.07056371,70858.0,70853.0,0.00022]
[1771141305232,0.07056293,70859.0,70853.0,0.00022]
[1771141306259,0.07056366,70858.0,70853.0,0.00022]
[1771141311042,0.07056366,70858.0,70853.0,0.02413469]
[1771141311476,0.07056366,70858.0,70849.0,0.24158937]
[1771141312421,0.07056366,70858.0,70848.0,0.32969601]
[1771141313274,0.07056366,70858.0,70845.0,1e-08]
[1771141313275,0.07057341,70849.0,70845.0,1e-08]
[1771141313698,0.07057431,70848.0,70845.0,1e-08]
[1771141314122,0.07057561,70846.0,70845.0,1e-08]
[1771141314775,0.07028161,70846.0,70845.0,1e-08]
[1771141315211,0.09472959,70846.0,70845.0,1e-08]
[1771141315422,0.02444798,70844.0,70842.0,1e-08]
[1771141315627,0.07057625,70846.0,70842.0,0.00012985]
[1771141316341,0.28227575,70853.0,70842.0,0.00012985]
[1771141316761,0.07057347,70849.0,70842.0,0.00012985]
[1771141317369,0.07057362,70848.0,70842.0,0.00012985]
[1771141318559,0.07057149,70851.0,70842.0,0.00012985]
[1771141320114,0.07056764,70854.0,70842.0,0.07070943]
[1771141320320,0.00012,70860.0,70846.0,0.02391469]
[1771141320530,0.07056465,70857.0,70846.0,0.02391469]
[1771141321164,0.07056568,70856.0,70846.0,0.02391469]
[1771141321413,0.00012,70860.0,70842.0,0.00012985]
[1771141321414,0.07057411,70848.0,70842.0,0.00012985]
[1771141321629,0.00012,70860.0,70840.0,0.00034]
[1771141321630,0.0705786,70843.0,70840.0,0.00034]
[1771141322046,0.07057955,70843.0,70840.0,0.00034]
[1771141322254,0.0950248,70845.0,70840.0,3.935e-05]
[1771141322466,0.00012965,70845.0,70840.0,3.935e-05]
[1771141322693,0.02457763,70845.0,70840.0,3.935e-05]
[1771141322922,0.07058059,70841.0,70838.0,0.00022]
[1771141323155,0.02457763,70845.0,70838.0,1e-08]
[1771141323156,0.07058258,70839.0,70838.0,1e-08]
[1771141324285,0.02444798,70844.0,70838.0,1e-08]
[1771141324703,0.0705805,70842.0,70838.0,1e-08]
[1771141325748,0.07058059,70841.0,70838.0,1e-08]
[1771141326102,0.07058185,70840.0,70838.0,1e-08]
[1771141326304,0.07058258,70839.0,70838.0,1e-08]
[1771141328462,0.07058185,70840.0,70838.0,1e-08]
[1771141328865,0.07058258,70839.0,70838.0,1e-08]
[1771141333452,0.07058258,70839.0,70829.0,0.63148338]
[1771141333855,0.07058458,70837.0,70829.0,0.29324338]
[1771141334885,0.07058823,70834.0,70829.0,0.29324338]
[1771141335085,0.00012,70840.0,70827.0,0.33846]
[1771141335260,0.07058335,70839.0,70830.0,0.29324338]
[1771141335477,0.07058717,70835.0,70830.0,0.29324338]
[1771141335683,0.07058717,70835.0,70827.0,0.33846]
[1771141336113,0.07058717,70835.0,70827.0,0.36134981]
[1771141336361,0.07058804,70834.0,70827.0,0.36134981]
[1771141336521,0.07059036,70832.0,70827.0,0.33846]
[1771141336776,1e-08,70832.0,70827.0,0.33846]
[1771141336951,0.07059116,70831.0,70827.0,0.33846]
[1771141337164,0.0705906,70831.0,70827.0,0.33846]
[1771141337338,0.07059115,70831.0,70827.0,0.33846]
[1771141337558,0.28235135,70834.0,70830.0,0.00022]
[1771141337731,0.28235135,70834.0,70825.0,0.33828]
[1771141337732,0.09556605,70828.0,70825.0,0.33828]
[1771141337931,0.0705905,70832.0,70825.0,0.33828]
[1771141339236,0.02497237,70838.0,70825.0,0.33828]
[1771141339433,0.02497237,70838.0,70822.0,0.00022]
[1771141339434,0.02497237,70832.0,70822.0,0.00022]
[1771141339777,0.07059853,70823.0,70822.0,0.00022]
[1771141339932,0.0705975,70825.0,70822.0,0.00022]
[1771141340342,0.07059527,70827.0,70822.0,0.00022]
[1771141340939,0.07059527,70827.0,70822.0,0.00034972]
[1771141341956,0.07059535,70828.0,70822.0,0.00034972]
[1771141342285,0.02497237,70831.0,70822.0,0.00034972]
[1771141342493,0.07059731,70825.0,70822.0,0.00034972]
[1771141342693,0.07059585,70826.0,70822.0,0.00034972]
[1771141342850,0.02497237,70831.0,70822.0,0.00034972]
[1771141343068,0.07059853,70823.0,70822.0,0.00034972]
[1771141343490,0.02497237,70831.0,70822.0,0.00034972]
[1771141343813,0.07059538,70828.0,70822.0,0.00034972]
[1771141344154,0.07059538,70828.0,70822.0,0.00018421]
[1771141344675,0.07059512,70827.0,70822.0,0.00018421]
[1771141345075,0.06477375,70826.0,70822.0,0.00018421]
[1771141345528,0.07059654,70825.0,70822.0,0.00018421]
[1771141345843,0.13537109,70826.0,70822.0,0.00018421]
[1771141346053,0.13537109,70826.0,70817.0,0.0002627]
[1771141346054,0.02497237,70823.0,70817.0,0.0002627]
[1771141346241,0.06477375,70826.0,70817.0,0.0002627]
[1771141346242,0.06477375,70826.0,70818.0,0.39410332]
[1771141346415,0.06489576,70826.0,70818.0,0.39410332]
[1771141346826,0.06489576,70826.0,70818.0,0.02288981]
[1771141347474,0.06489576,70826.0,70817.0,0.0002627]
[1771141347475,0.00012,70840.0,70821.0,0.37121351]
[1771141347675,0.00012,70840.0,70821.0,0.00012201]
[1771141347676,0.07058956,70832.0,70821.0,0.00012201]
[1771141348000,0.07059532,70827.0,70821.0,0.00012201]
[1771141348208,0.0705986,70823.0,70821.0,0.00012201]
[1771141348698,0.07060221,70820.0,70814.0,0.00027]
[1771141348851,0.07059965,70822.0,70814.0,0.00027]
[1771141349057,0.07072947,70822.0,70814.0,0.00027]
[1771141349308,0.07060052,70821.0,70814.0,0.00027]
[1771141349649,0.07060255,70819.0,70814.0,0.00027]
[1771141349895,0.00012982,70822.0,70814.0,0.00027]
[1771141350269,0.07060056,70821.0,70814.0,0.00027]
[1771141350512,0.00012982,70822.0,70815.0,0.37121351]
[1771141350719,0.07058774,70834.0,70821.0,0.39410332]
[1771141350918,0.07059029,70832.0,70821.0,0.39410332]
[1771141351092,0.07058797,70834.0,70821.0,0.39410332]
[1771141351499,0.07058797,70834.0,70822.0,0.02288981]
[1771141351699,0.0002,70826.0,70824.0,0.02288981]
[1771141353609,0.0002,70826.0,70821.0,0.37121351]
[1771141353784,0.0002,70826.0,70822.0,0.02288981]
[1771141353990,0.0002,70826.0,70819.0,0.07060226]
[1771141354527,0.0002,70826.0,70818.0,0.39432332]
[1771141354731,0.0002,70826.0,70818.0,0.00022]
[1771141354934,0.02497237,70825.0,70814.0,0.00022]
[1771141355162,0.07060169,70820.0,70814.0,0.00034982]
[1771141355783,0.07060083,70821.0,70814.0,0.00034982]
[1771141355915,0.02497237,70823.0,70814.0,0.00034982]
[1771141357076,0.07059809,70824.0,70814.0,0.00034982]
[1771141358225,0.07059809,70824.0,70808.0,0.37121351]
[1771141358226,0.1872,70823.0,70790.0,0.00012]
[1771141358425,0.1872,70823.0,70782.0,0.02288981]
[1771141358426,0.02497237,70798.0,70782.0,0.02288981]
[1771141358562,0.02497237,70798.0,70789.0,0.02288981]
[1771141358563,0.07062515,70797.0,70789.0,0.02288981]
[1771141358763,0.07062624,70796.0,70788.0,0.37147621]
[1771141358968,0.07062624,70796.0,70788.0,0.0002627]
[1771141359251,0.07062692,70795.0,70788.0,0.0002627]
[1771141359385,0.00043315,70798.0,70788.0,0.0002627]
[1771141359590,0.07062994,70792.0,70788.0,0.0002627]
[1771141359919,0.07062901,70793.0,70788.0,0.0002627]
[1771141359920,0.07062745,70794.0,70788.0,0.0002627]
[1771141360175,0.07062665,70795.0,70788.0,0.0002627]
[1771141360383,0.07062448,70797.0,70789.0,0.37121351]
[1771141360593,0.07062652,70795.0,70788.0,0.02315251]
[1771141360939,0.07062767,70794.0,70788.0,0.0005603]
[1771141361344,0.07063244,70789.0,70788.0,0.0005603]
[1771141361511,0.07063152,70790.0,70788.0,0.0005603]
[1771141361980,0.07063068,70791.0,70788.0,0.0005603]
[1771141362184,0.00043315,70798.0,70788.0,0.0005603]
[1771141362463,0.00012,70800.0,70791.0,0.37059641]
[1771141362645,0.07061992,70802.0,70794.0,0.02499354]
[1771141362999,0.00012,70810.0,70797.0,0.02376934]
[1771141363000,0.07061355,70808.0,70797.0,0.02376934]
[1771141363204,0.07061354,70808.0,70798.0,0.02376934]
[1771141363412,0.07061502,70807.0,70799.0,0.02376934]
[1771141363630,0.00012,70810.0,70799.0,0.02376934]
[1771141363831,0.07061613,70806.0,70799.0,0.02376934]
[1771141364031,0.07061613,70806.0,70799.0,0.40857198]
[1771141364233,0.07061373,70808.0,70800.0,0.02376934]
[1771141364563,0.07061373,70808.0,70801.0,0.40827078]
[1771141364870,0.0706126,70809.0,70801.0,0.40827078]
[1771141365032,0.07073193,70810.0,70801.0,0.40857198]
[1771141365205,0.07073223,70810.0,70801.0,0.40857198]
[1771141365406,0.07061272,70809.0,70801.0,0.40857198]
[1771141365601,0.07061366,70808.0,70801.0,0.02407054]
[1771141365801,0.07073223,70810.0,70801.0,0.02407054]
[1771141366026,0.02358102,70822.0,70803.0,0.02376934]
[1771141366232,0.07060527,70817.0,70805.0,0.02376934]
[1771141366636,0.07060527,70817.0,70806.0,0.02376934]
[1771141366860,0.07060601,70816.0,70806.0,0.02376934]
[1771141367092,0.07060527,70817.0,70806.0,0.02376934]
[1771141367288,0.02358102,70822.0,70808.0,0.02376934]
[1771141367615,0.0706056,70816.0,70808.0,0.02376934]
[1771141367819,0.07060397,70818.0,70808.0,0.02376934]
[1771141367978,0.07060503,70817.0,70808.0,0.02376934]
[1771141368595,0.07060503,70817.0,70808.0,0.38450144]
[1771141368772,0.07060589,70816.0,70809.0,0.02376934]
[1771141370437,0.07072193,70820.0,70811.0,0.02376934]
[1771141371014,0.07060636,70816.0,70806.0,0.38450144]
[1771141371215,0.07060636,70816.0,70806.0,0.02376934]
[1771141371456,0.07060863,70813.0,70806.0,0.02376934]
[1771141372012,0.07060388,70818.0,70806.0,0.02376934]
[1771141372226,0.07060516,70817.0,70806.0,0.02376934]
[1771141372628,0.07060516,70817.0,70809.0,0.00022]
[1771141373031,0.07060577,70816.0,70810.0,0.33828]
[1771141373679,0.07060792,70814.0,70809.0,0.00022]
[1771141373886,0.07060792,70814.0,70810.0,0.33828]
[1771141374122,0.0706085,70813.0,70810.0,0.33828]
[1771141374395,0.07060865,70813.0,70810.0,0.33828]
[1771141375105,0.02358102,70818.0,70810.0,0.33828]
[1771141375614,0.02358102,70818.0,70809.0,0.3385]
[1771141376403,0.00012,70820.0,70809.0,0.3385]
[1771141376606,0.00012,70820.0,70813.0,0.07060822]
[1771141377455,0.00012,70820.0,70817.0,0.07060412]
[1771141379510,0.00012,70820.0,70818.0,0.07060332]
[1771141379690,0.00012,70820.0,70811.0,0.02376934]
[1771141379691,0.02358102,70828.0,70824.0,0.07059666]
[1771141379908,0.00012,70830.0,70818.0,0.28241235]
[1771141380084,0.00012,70830.0,70823.0,0.07059785]
[1771141380465,0.00012,70830.0,70823.0,0.07059853]
[1771141380709,0.00012,70830.0,70821.0,0.33828]
[1771141380966,0.00012,70830.0,70822.0,0.07059888]
[1771141381395,0.00012,70830.0,70821.0,0.40887958]
[1771141381608,0.00012,70830.0,70821.0,0.33828]
[1771141382005,0.02358102,70825.0,70821.0,0.33828]
[1771141382424,0.02358102,70825.0,70821.0,0.25742926]
[1771141383387,0.02358102,70825.0,70821.0,0.23605709]
[1771141386579,0.1002,70826.0,70821.0,0.23605709]
[1771141387016,0.1002,70826.0,70825.0,0.07059654]
[1771141387276,0.00012,70830.0,70826.0,0.07059554]
[1771141387490,0.00024982,70830.0,70826.0,0.07059554]
[1771141387715,0.00024982,70830.0,70821.0,0.23605709]
[1771141387933,0.00012,70840.0,70821.0,0.23605709]
[1771141387934,0.00012,70840.0,70832.0,0.07058883]
[1771141388147,0.07058436,70838.0,70826.0,0.07059484]
[1771141388380,0.02358102,70837.0,70827.0,0.07059439]
[1771141388967,0.02358102,70837.0,70828.0,0.07059333]
[1771141389182,0.02358102,70837.0,70829.0,0.0705925]
[1771141389396,0.0002,70839.0,70828.0,0.07059322]
[1771141389621,0.0002,70839.0,70828.0,0.07059291]
[1771141389797,0.0002,70839.0,70829.0,0.07059174]
[1771141389972,0.0002,70839.0,70828.0,0.07059291]
[1771141392561,0.0002,70837.0,70828.0,0.07059291]
[1771141394653,0.0002,70837.0,70827.0,0.07059422]
[1771141394856,0.0002,70837.0,70826.0,0.00012982]
[1771141395083,0.0002,70837.0,70821.0,0.00022]
[1771141395084,0.02337208,70828.0,70821.0,0.00022]
[1771141395254,0.02350038,70828.0,70821.0,0.00022]
[1771141395795,0.07059737,70825.0,70821.0,0.00022]
[1771141396034,0.02337208,70823.0,70821.0,0.00022]
[1771141396242,0.0001283,70828.0,70814.0,5.5e-05]
[1771141396243,0.02337208,70826.0,70814.0,5.5e-05]
[1771141396442,0.02337208,70818.0,70813.0,0.00022]
[1771141396774,0.02337208,70820.0,70813.0,0.00022]
[1771141396975,0.07060126,70821.0,70813.0,0.00022]
[1771141396976,0.09397472,70819.0,70813.0,0.00022]
[1771141398189,0.38434839,70822.0,70813.0,0.00022]
[1771141398190,0.07059986,70822.0,70813.0,0.00022]
[1771141398390,0.07060171,70820.0,70813.0,0.00022]
[1771141399806,0.07060054,70821.0,70813.0,0.00022]
[1771141400269,0.07060054,70821.0,70814.0,0.00022]
[1771141401337,0.07060166,70820.0,70814.0,0.00022]
[1771141402756,0.07060087,70821.0,70814.0,0.00022]
[1771141402964,0.07060139,70822.0,70814.0,0.00022]
[1771141403398,0.07059843,70825.0,70814.0,0.02323284]
[1771141403598,0.07072284,70828.0,70814.0,0.02323284]
[1771141403841,0.07060153,70820.0,70814.0,0.3385]
[1771141403985,0.09397185,70822.0,70814.0,0.3385]
[1771141404183,0.02337208,70822.0,70814.0,0.3385]
[1771141404379,0.07059953,70822.0,70814.0,0.3385]
[1771141407056,0.07060028,70823.0,70814.0,0.3385]
[1771141407245,0.07060064,70821.0,70814.0,0.3385]
[1771141407615,0.07059971,70822.0,70814.0,0.3385]
[1771141407818,0.00012,70840.0,70814.0,0.3385]
[1771141408017,0.0002,70826.0,70816.0,0.02301284]
[1771141408219,0.29376405,70830.0,70817.0,0.09361646]
[1771141408420,0.36435572,70830.0,70818.0,0.07060318]
[1771141408674,0.29376405,70830.0,70820.0,0.07060072]
[1771141408810,0.29376405,70830.0,70820.0,0.09361356]
[1771141409009,0.00032,70830.0,70820.0,0.39848638]
[1771141409432,0.00032,70830.0,70820.0,0.46908751]
[1771141409806,0.00032,70830.0,70820.0,0.35231378]
[1771141410510,0.00032,70830.0,70814.0,0.3385]
[1771141410733,6e-05,70834.0,70827.0,0.37547354]
[1771141410895,6e-05,70834.0,70828.0,0.33828]
[1771141411506,6e-05,70836.0,70828.0,0.33828]
[1771141412347,0.07064563,70836.0,70828.0,0.33828]
[1771141412758,0.07059066,70831.0,70814.0,0.37569354]
[1771141412959,0.29344405,70830.0,70823.0,0.09044]
[1771141413158,0.07058995,70832.0,70823.0,0.09044]
[1771141413159,0.07059133,70831.0,70823.0,0.09044]
[1771141413540,0.00016551,70830.0,70820.0,0.0002483]
[1771141413806,0.00016551,70830.0,70821.0,0.42872]
[1771141414322,0.07064633,70836.0,70822.0,0.07059876]
[1771141414465,0.07064633,70836.0,70824.0,0.37547354]
[1771141414466,6e-05,70836.0,70824.0,0.37547354]
[1771141414673,6e-05,70836.0,70826.0,0.38836397]
[1771141415177,0.38434839,70833.0,70820.0,0.0002483]
[1771141415487,0.02337208,70823.0,70820.0,0.0002483]
[1771141417776,0.07059968,70822.0,70820.0,0.0002483]
[1771141418009,0.07060365,70818.0,70814.0,0.00022]
[1771141418155,0.02337208,70817.0,70815.0,0.33828]
[1771141418335,0.02337208,70817.0,70814.0,0.00022]
[1771141421821,0.02353614,70816.0,70814.0,0.00022]
[1771141423707,0.07068737,70817.0,70814.0,0.00022]
[1771141424026,0.07068737,70817.0,70810.0,0.00012]
[1771141424027,0.02462086,70816.0,70810.0,0.00012]
[1771141424225,0.02462086,70813.0,70810.0,0.00012]
[1771141424768,8.26e-05,70817.0,70810.0,0.00012]
[1771141424983,0.0706889,70817.0,70810.0,0.00012]
[1771141425201,8.26e-05,70817.0,70810.0,0.00012]
[1771141425400,8.26e-05,70817.0,70810.0,0.3384]
[1771141428442,8.26e-05,70817.0,70811.0,0.09484024]
[1771141428629,5.497e-05,70818.0,70814.0,0.02423037]
[1771141428824,0.0002,70821.0,70813.0,0.02423037]
[1771141429030,0.0002,70821.0,70814.0,0.02423037]
[1771141429227,0.0002,70821.0,70815.0,0.07060644]
[1771141429409,0.0002,70821.0,70814.0,0.09483707]
[1771141429614,0.0002,70821.0,70814.0,0.02423037]
[1771141431023,0.0002,70821.0,70814.0,0.09483753]
[1771141431231,6e-05,70824.0,70812.0,0.02423037]
[1771141431435,6e-05,70824.0,70816.0,0.02423037]
[1771141431650,6e-05,70824.0,70816.0,0.02428534]
[1771141431851,0.0001661,70826.0,70816.0,0.02428534]
[1771141432186,0.0707618,70826.0,70816.0,0.02428534]
[1771141433856,0.07059673,70825.0,70816.0,0.02428534]
[1771141434258,0.07059801,70824.0,70816.0,5.497e-05]
[1771141434461,0.07059853,70823.0,70816.0,5.497e-05]
[1771141434944,0.07059853,70823.0,70817.0,0.33828]
[1771141436910,0.07059965,70822.0,70817.0,0.33828]
[1771141437112,0.07060082,70821.0,70817.0,0.33828]
[1771141437316,0.07059988,70822.0,70817.0,0.33828]
[1771141438024,0.02462086,70823.0,70817.0,0.33828]
[1771141438416,0.0706013,70822.0,70817.0,0.33828]
[1771141438961,0.07060246,70820.0,70817.0,0.33828]
[1771141439164,0.07060236,70821.0,70817.0,0.33828]
[1771141439580,0.07060184,70820.0,70817.0,0.33828]
[1771141439988,0.07060236,70821.0,70817.0,0.33828]
[1771141440209,0.07059957,70822.0,70817.0,0.33828]
[1771141440435,0.0706025,70820.0,70817.0,0.33828]
[1771141441002,0.0706013,70821.0,70817.0,0.33828]
[1771141441523,0.09522039,70823.0,70817.0,0.1841276]
[1771141441760,0.09522444,70818.0,70816.0,5.497e-05]
[1771141441894,0.02462086,70818.0,70816.0,5.497e-05]
[1771141442242,0.02462086,70817.0,70814.0,0.00022]
[1771141442443,0.02462086,70818.0,70810.0,0.00034]
[1771141442653,0.37790316,70819.0,70810.0,0.00034]
[1771141442654,0.02462086,70816.0,70810.0,0.00034]
[1771141442878,0.02462086,70812.0,70810.0,0.00034]
[1771141445207,0.02462086,70812.0,70804.0,0.07061723]
[1771141445461,0.02462086,70812.0,70803.0,0.07061763]
[1771141445702,0.02462086,70812.0,70803.0,0.07061821]
[1771141445896,0.02462086,70812.0,70799.0,0.28270758]
[1771141445897,0.02462086,70807.0,70799.0,0.00022]
[1771141446104,0.07061727,70805.0,70799.0,0.00022]
[1771141446324,0.07061832,70804.0,70799.0,0.00022]
[1771141446540,0.09524061,70802.0,70799.0,0.00022]
[1771141446753,0.02462086,70802.0,70799.0,0.00022]
[1771141446968,0.09524051,70802.0,70799.0,0.00022]
[1771141447182,0.02462086,70802.0,70799.0,0.00022]
[1771141447366,0.09524052,70802.0,70799.0,0.00022]
[1771141447612,0.07062146,70800.0,70799.0,0.00022]
[1771141447828,0.07062077,70801.0,70799.0,0.00022]
[1771141448227,0.02462086,70801.0,70799.0,0.00022]
[1771141448460,0.09523863,70804.0,70799.0,0.00022]
[1771141448942,0.07061873,70803.0,70799.0,0.00022]
[1771141449390,0.02462086,70809.0,70795.0,0.00022]
[1771141449561,0.09524527,70798.0,70795.0,0.00022]
[1771141449873,0.07062545,70796.0,70795.0,0.00022]
[1771141450379,0.07062545,70796.0,70793.0,0.0001661]
[1771141450380,0.07062645,70795.0,70793.0,0.0001661]
[1771141450608,0.02462086,70797.0,70793.0,0.0001661]
[1771141450813,0.07062571,70796.0,70794.0,0.00034975]
[1771141451239,0.07062645,70795.0,70794.0,0.00034975]
[1771141451459,0.07062645,70795.0,70790.0,0.00012]
[1771141451460,0.07063044,70791.0,70790.0,0.00012]
[1771141451665,0.07075871,70791.0,70790.0,0.00012]
[1771141452319,0.07063144,70790.0,70789.0,0.00022]
[1771141452530,0.07063144,70790.0,70788.0,0.00022]
[1771141452531,0.02462086,70790.0,70775.0,0.0001661]
[1771141452751,0.07063441,70788.0,70775.0,0.0950426]
[1771141452962,0.07063441,70788.0,70776.0,0.07064538]
[1771141453447,0.07063441,70788.0,70775.0,0.02439647]
[1771141453667,0.07063441,70788.0,70775.0,0.48006828]
[1771141454093,0.07063441,70788.0,70776.0,0.07064537]
[1771141454342,0.07063745,70784.0,70775.0,0.40942268]
[1771141454581,0.07063469,70787.0,70775.0,0.40942268]
[1771141455024,0.07063356,70788.0,70775.0,0.40942268]
[1771141455245,0.07063462,70787.0,70775.0,0.40942268]
[1771141455465,0.07063517,70788.0,70775.0,0.40942268]
[1771141455697,0.31806491,70790.0,70775.0,0.40942268]
[1771141455925,0.07063433,70788.0,70775.0,0.48006832]
[1771141456153,0.31806491,70790.0,70775.0,0.40942268]
[1771141456357,0.31806491,70790.0,70780.0,0.00034]
[1771141456549,0.07063416,70788.0,70780.0,0.00034]
[1771141456738,0.07063448,70787.0,70780.0,0.00034]
[1771141457176,0.07063549,70786.0,70780.0,0.00034]
[1771141457532,0.00012827,70791.0,70780.0,0.02369787]
[1771141457736,0.00012827,70791.0,70783.0,0.02335787]
[1771141458505,0.07062546,70796.0,70788.0,0.02335787]
[1771141458671,0.07062546,70796.0,70788.0,0.02379102]
[1771141458872,0.07062621,70796.0,70788.0,0.02379102]
[1771141460246,0.07062512,70797.0,70788.0,0.02379102]
[1771141460884,0.0706259,70796.0,70788.0,0.02379102]
[1771141461085,0.07062677,70795.0,70788.0,0.02379102]
[1771141461469,0.07062677,70795.0,70788.0,0.00043315]
[1771141462442,0.07062561,70796.0,70788.0,0.00043315]
[1771141462595,0.07062561,70796.0,70788.0,0.02379102]
[1771141463140,0.07062928,70793.0,70788.0,0.02379102]
[1771141463359,0.07062971,70792.0,70788.0,0.00043315]
[1771141463587,0.07063204,70790.0,70788.0,0.00043315]
[1771141463940,0.07063204,70790.0,70788.0,0.00065315]
[1771141464121,0.07063244,70789.0,70788.0,0.00065315]
[1771141464323,0.07063244,70789.0,70785.0,5.5e-05]
[1771141464324,0.07063453,70787.0,70785.0,5.5e-05]
[1771141464511,0.02468243,70787.0,70785.0,5.5e-05]
[1771141464714,0.07063543,70786.0,70782.0,0.338375]
[1771141465027,0.07063647,70785.0,70782.0,0.338375]
[1771141465221,0.07063607,70786.0,70782.0,5.5e-05]
[1771141465692,0.29372644,70792.0,70782.0,5.5e-05]
[1771141465693,0.0002,70812.0,70805.0,0.16868385]
[1771141465830,0.0002,70812.0,70802.0,0.38502621]
[1771141465831,6e-05,70818.0,70802.0,0.33832]
[1771141466175,0.00029597,70817.0,70809.0,0.07061226]
[1771141466375,0.00737663,70809.0,70803.0,0.40838408]
[1771141466584,0.00737663,70809.0,70803.0,0.02335787]
[1771141466773,0.29372644,70813.0,70803.0,0.02335787]
[1771141466977,0.07060588,70816.0,70803.0,0.02335787]
[1771141467183,0.07060588,70816.0,70804.0,0.07061745]
[1771141467381,0.07060919,70813.0,70801.0,0.07062012]
[1771141467612,0.07060919,70813.0,70801.0,0.33832]
[1771141467783,0.07061016,70812.0,70801.0,0.33832]
[1771141468391,0.02424955,70815.0,70804.0,0.07061708]
[1771141468591,0.07060551,70816.0,70804.0,0.07061708]
[1771141468821,0.07060688,70815.0,70803.0,0.07061847]
[1771141469194,0.00012987,70817.0,70805.0,0.07061566]
[1771141469367,0.07073508,70817.0,70805.0,0.07061566]
[1771141469788,0.07073508,70817.0,70804.0,0.07061566]
[1771141470004,0.07073508,70817.0,70805.0,0.07061574]
[1771141470005,0.00012987,70817.0,70805.0,0.07061574]
[1771141470336,0.00012987,70817.0,70804.0,0.28246936]
[1771141470584,0.00012987,70817.0,70808.0,0.07061296]
[1771141470785,0.00012987,70817.0,70802.0,0.64415415]
[1771141470786,0.00012987,70817.0,70802.0,0.36167787]
[1771141470989,0.0002,70815.0,70806.0,0.07061533]
[1771141471213,0.0002,70815.0,70805.0,0.07061625]
[1771141471812,0.0002,70815.0,70804.0,0.02335787]
[1771141471961,0.0002,70815.0,70809.0,0.07061208]
[1771141472167,0.00012987,70817.0,70810.0,0.02335787]
[1771141472388,0.00012987,70817.0,70811.0,0.07061046]
[1771141472568,0.00012987,70817.0,70811.0,0.09396833]
[1771141472907,0.00012987,70817.0,70813.0,0.02335787]
[1771141474024,0.07059868,70823.0,70813.0,0.02335787]
[1771141474025,0.0705964,70826.0,70813.0,0.09396567]
[1771141474318,0.0705964,70826.0,70811.0,0.07060977]
[1771141474319,0.07059753,70824.0,70810.0,0.00012]
[1771141474494,0.02424955,70819.0,70810.0,0.00012]
[1771141474907,0.09485293,70819.0,70810.0,0.00012]
[1771141475102,0.02424955,70819.0,70810.0,0.00012]
[1771141475723,0.09485215,70819.0,70810.0,0.00012]
[1771141475986,0.02424955,70819.0,70810.0,0.00012]
[1771141476200,0.02424955,70817.0,70810.0,0.00012]
[1771141476404,0.02424955,70817.0,70805.0,0.33832]
[1771141476405,0.02424955,70816.0,70805.0,0.33832]
[1771141476760,0.02424955,70815.0,70805.0,0.33832]
[1771141477141,0.07060782,70814.0,70805.0,0.33832]
[1771141477551,0.09485626,70815.0,70805.0,0.33832]
[1771141477729,0.02424955,70815.0,70805.0,0.33832]
[1771141478305,0.09485612,70815.0,70805.0,0.33832]
[1771141479049,0.02424955,70814.0,70804.0,5.5e-05]
[1771141479265,0.02424955,70815.0,70804.0,5.5e-05]
[1771141479465,0.02424955,70808.0,70796.0,0.40912497]
[1771141479845,0.02424955,70806.0,70796.0,0.00018]
[1771141480041,0.37747827,70807.0,70796.0,0.00018]
[1771141480042,0.02424955,70805.0,70796.0,0.00018]
[1771141481196,0.448094,70806.0,70796.0,0.00018]
[1771141481197,0.09486792,70804.0,70796.0,0.00018]
[1771141481397,0.02424955,70803.0,70796.0,0.00018]
[1771141481937,0.39064584,70809.0,70796.0,0.00018]
[1771141482129,0.33035942,70810.0,70796.0,0.00018]
[1771141482342,0.0236756,70802.0,70796.0,0.00018]
[1771141482545,0.09437536,70802.0,70796.0,0.00018]
[1771141483126,0.07062057,70801.0,70796.0,0.00018]
[1771141483299,0.0226685,70800.0,70792.0,0.00022]
[1771141483716,0.07062359,70798.0,70792.0,0.00022]
[1771141484207,0.07062359,70798.0,70790.0,0.00012]
[1771141484208,0.0226685,70796.0,70790.0,0.00012]
[1771141485355,0.0002,70800.0,70790.0,0.00012]
[1771141485562,0.07062377,70798.0,70790.0,0.00012]
[1771141485771,0.0228685,70800.0,70790.0,0.00012]
[1771141485962,0.0706243,70798.0,70790.0,0.00012]
[1771141486627,0.07062466,70797.0,70790.0,0.00012]
[1771141487031,0.2826866,70800.0,70790.0,0.00012]
[1771141487243,0.07062522,70797.0,70790.0,0.00012]
[1771141487828,0.07062715,70795.0,70790.0,0.00012]
[1771141488029,0.0226685,70795.0,70790.0,0.00012]
[1771141488537,0.0226685,70795.0,70788.0,0.00022]
[1771141488538,0.0226685,70799.0,70788.0,0.00022]
[1771141488710,0.0226685,70790.0,70786.0,0.00018]
[1771141488910,0.401189,70794.0,70786.0,0.00018]
[1771141489135,0.09330276,70788.0,70776.0,0.00018]
[1771141489674,0.07063443,70787.0,70776.0,0.00018]
[1771141489879,0.09330293,70787.0,70776.0,0.00018]
[1771141490278,0.09330293,70787.0,70778.0,0.0002538]
[1771141490600,0.09330293,70787.0,70778.0,0.07089679]
[1771141490601,0.0226685,70787.0,70778.0,0.07089679]
[1771141491198,0.07063183,70790.0,70782.0,0.00022]
[1771141492014,0.03528454,70813.0,70782.0,0.00022]